{"text_format":"1","workbook":"xlsx","n_sheets":2,"sheets":["BoQ1","Macros"],"not_rendered":{"charts":0,"images":0,"macros":1,"external_links":2,"defined_names":27,"comments":1,"pivot_tables":0},"unopened":[],"bounds":{"document_bytes":16777216,"sheet_cells":100000,"rows_first":2000,"rows_last":500,"rows_between":2000,"halvings":0,"cell_chars":16384,"cell_head_chars":4096},"cells_cut":0,"cells_raw":0,"read":"whole","date_system":"1900"}

{"sheet":"BoQ1","index":0,"n_rows":20,"n_cols":243,"rows_kept":20,"cut":false,"hidden":true,"merged":[[8,0,8,54],[19,2,19,54],[0,0,0,11],[3,0,3,54],[4,0,4,54],[5,0,5,54],[6,0,6,54]]}
["Item Wise BoQ"]
["BoQ_Ver4.0","Item Wise","Normal","INR Only","INR"]
["Select, Excess (+), Less (-)"]
["Tender Inviting Authority: Assam Cancer Care Foundation"]
["Name of Work: HIRING SECURITY SERVICE PROVIDER FOR ASSAM CANCER CARE FOUNDATION(ACCF)"]
["Contract No:  ACCF/Security/2025-26/93"]
[" "]
["Name of the Bidder/ Bidding Firm / Company :"]
["PRICE SCHEDULE\n(DOMESTIC TENDERS - RATES ARE TO GIVEN IN RUPEES (INR) ONLY)\n\nMinimum wages to be considered as per Notification No: E-262184/62 by Labour Welfare Department: Govt. of Assam as ammended from time to time shall be applicable."]
["NUMBER #","TEXT #","TEXT #","NUMBER #","TEXT #","NUMBER","NUMBER","TEXT","TEXT #","NUMBER #","TEXT#","TEXT #","NUMBER #","NUMBER","NUMBER","NUMBER","NUMBER","TEXT","TEXT","NUMBER","NUMBER","NUMBER","NUMBER","TEXT","TEXT","NUMBER","NUMBER","NUMBER","NUMBER","TEXT","TEXT","NUMBER","NUMBER","NUMBER","NUMBER","TEXT","TEXT","NUMBER","NUMBER","NUMBER","NUMBER","TEXT","TEXT","NUMBER","NUMBER","NUMBER #","NUMBER #","TEXT","TEXT","NUMBER #","NUMBER #","DATE","NUMBER #","NUMBER #","TEXT #"]
["Sl.\nNo.","Item Description","Item Code / Make","Quantity","Units","Estimated Rate in\nRs.      P",null,null,"Addition / Deduction","Addition / Deduction Values","Currency Convertion against each Item","Quoted Currency in INR / Other Currency","Service Rate per month\n ","GST in Percentage","GST Amount \nin \nRs.      P",null,null,null,null,null,null,null,null,null,null,null,null,null,null,null,null,null,null,null,null,null,null,null,null,null,null,null,null,null,null,null,null,null,null,null,"HSN / SAC Code",null,"TOTAL AMOUNT  excluding taxes in\nRs.      P","TOTAL AMOUNT  including taxes\nRs.      P","TOTAL AMOUNT In Words"]
[1,2,3,4,5,6,7,8,9,10,11,12,7,8,9,16,17,18,19,20,21,22,23,24,25,26,27,28,29,30,31,32,33,34,35,36,37,38,39,40,41,42,43,44,45,46,47,48,49,50,10,52,11,12,13]
[1.01,"Security Services of 12 hours a day for a month","item1",97,"Nos",0,null,null,"Excess(+)",{"$f":"IF(I13=\"Less(-)\",-1,1)","v":1},"Full Conversion","INR",null,null,{"$f":"(D13*M13)*N13%","v":0},null,null,null,null,null,null,null,null,null,null,null,null,null,null,null,null,null,null,null,null,null,null,null,null,null,null,null,null,null,null,null,null,null,null,null,null,null,{"$f":"M13*D13","v":0},{"$f":"(BA13*N13)+BA13","v":0},{"$f":"SpellNumberMC(L13,BB13)","v":"INR Zero Only"},null,null,null,null,null,null,null,null,null,null,null,null,null,null,null,null,null,null,null,null,null,null,null,null,null,null,null,null,null,null,null,null,null,null,null,null,null,null,null,null,null,null,null,null,null,null,null,null,null,null,null,null,null,null,null,null,null,null,null,null,null,null,null,null,null,null,null,null,null,null,null,null,null,null,null,null,null,null,null,null,null,null,null,null,null,null,null,null,null,null,null,null,null,null,null,null,null,null,null,null,null,null,null,null,null,null,null,null,null,null,null,null,null,null,null,null,null,null,null,null,null,null,null,null,null,null,null,null,null,null,null,null,null,null,null,null,null,null,null,null,null,null,null,null,null,null,null,null,null,null,null,null,null,null,null,null,null,null,null,null,null,null,null,null,null,null,null,null,null,null,null,null,null,null,null,null,null,null,null,null,null,null,null,1.01,"Supplying, Conveying and fixing spls. Including eart","item1",123.223,"Nos"]
[1.02,"Security Services of 24 hours a day for a month","item2",54,"Nos",65,null,null,"Excess(+)",{"$f":"IF(I14=\"Less(-)\",-1,1)","v":1},"Full Conversion","INR",null,null,{"$f":"(D14*M14)*N14%","v":0},null,null,null,null,null,null,null,null,null,null,null,null,null,null,null,null,null,null,null,null,null,null,null,null,null,null,null,null,null,null,null,null,null,null,null,null,null,{"$f":"M14*D14","v":0},{"$f":"(BA14*N14)+BA14","v":0},{"$f":"SpellNumberMC(L14,BB14)","v":"INR Zero Only"},null,null,null,null,null,null,null,null,null,null,null,null,null,null,null,null,null,null,null,null,null,null,null,null,null,null,null,null,null,null,null,null,null,null,null,null,null,null,null,null,null,null,null,null,null,null,null,null,null,null,null,null,null,null,null,null,null,null,null,null,null,null,null,null,null,null,null,null,null,null,null,null,null,null,null,null,null,null,null,null,null,null,null,null,null,null,null,null,null,null,null,null,null,null,null,null,null,null,null,null,null,null,null,null,null,null,null,null,null,null,null,null,null,null,null,null,null,null,null,null,null,null,null,null,null,null,null,null,null,null,null,null,null,null,null,null,null,null,null,null,null,null,null,null,null,null,null,null,null,null,null,null,null,null,null,null,null,null,null,null,null,null,null,null,null,null,null,null,null,null,null,null,null,null,null,null,null,null,null,null,null,null,null,1.02,"Construction of chamber for 100mm sluice plates","item2",213,"Nos"]
[1.03,"Security Services of 8 hours a day for a month","item3",1,"Nos",0,null,null,"Excess(+)",{"$f":"IF(I15=\"Less(-)\",-1,1)","v":1},"Full Conversion","INR",null,null,{"$f":"(D15*M15)*N15%","v":0},null,null,null,null,null,null,null,null,null,null,null,null,null,null,null,null,null,null,null,null,null,null,null,null,null,null,null,null,null,null,null,null,null,null,null,null,null,{"$f":"M15*D15","v":0},0,{"$f":"SpellNumberMC(L15,BB15)","v":"INR Zero Only"},null,null,null,null,null,null,null,null,null,null,null,null,null,null,null,null,null,null,null,null,null,null,null,null,null,null,null,null,null,null,null,null,null,null,null,null,null,null,null,null,null,null,null,null,null,null,null,null,null,null,null,null,null,null,null,null,null,null,null,null,null,null,null,null,null,null,null,null,null,null,null,null,null,null,null,null,null,null,null,null,null,null,null,null,null,null,null,null,null,null,null,null,null,null,null,null,null,null,null,null,null,null,null,null,null,null,null,null,null,null,null,null,null,null,null,null,null,null,null,null,null,null,null,null,null,null,null,null,null,null,null,null,null,null,null,null,null,null,null,null,null,null,null,null,null,null,null,null,null,null,null,null,null,null,null,null,null,null,null,null,null,null,null,null,null,null,null,null,null,null,null,null,null,null,null,null,null,null,null,null,null,null,null,1.01,"Supplying, Conveying and fixing spls. Including eart","item1",123.223,"Nos"]
[1.04,"Superviser Services of 12 hours a day for a month","item4",6,"Nos",65,null,null,"Excess(+)",{"$f":"IF(I16=\"Less(-)\",-1,1)","v":1},"Full Conversion","INR",null,null,{"$f":"(D16*M16)*N16%","v":0},null,null,null,null,null,null,null,null,null,null,null,null,null,null,null,null,null,null,null,null,null,null,null,null,null,null,null,null,null,null,null,null,null,null,null,null,null,{"$f":"M16*D16","v":0},0,{"$f":"SpellNumberMC(L16,BB16)","v":"INR Zero Only"},null,null,null,null,null,null,null,null,null,null,null,null,null,null,null,null,null,null,null,null,null,null,null,null,null,null,null,null,null,null,null,null,null,null,null,null,null,null,null,null,null,null,null,null,null,null,null,null,null,null,null,null,null,null,null,null,null,null,null,null,null,null,null,null,null,null,null,null,null,null,null,null,null,null,null,null,null,null,null,null,null,null,null,null,null,null,null,null,null,null,null,null,null,null,null,null,null,null,null,null,null,null,null,null,null,null,null,null,null,null,null,null,null,null,null,null,null,null,null,null,null,null,null,null,null,null,null,null,null,null,null,null,null,null,null,null,null,null,null,null,null,null,null,null,null,null,null,null,null,null,null,null,null,null,null,null,null,null,null,null,null,null,null,null,null,null,null,null,null,null,null,null,null,null,null,null,null,null,null,null,null,null,null,1.02,"Construction of chamber for 100mm sluice plates","item2",213,"Nos"]
[1.05,"Superviser Services of 24 hours a day for a month.","item5",5,"Nos",75,null,null,"Excess(+)",{"$f":"IF(I17=\"Less(-)\",-1,1)","v":1},"Full Conversion","INR",null,null,{"$f":"(D17*M17)*N17%","v":0},null,null,null,null,null,null,null,null,null,null,null,null,null,null,null,null,null,null,null,null,null,null,null,null,null,null,null,null,null,null,null,null,null,null,null,null,null,{"$f":"M17*D17","v":0},0,{"$f":"SpellNumberMC(L17,BB17)","v":"INR Zero Only"},null,null,null,null,null,null,null,null,null,null,null,null,null,null,null,null,null,null,null,null,null,null,null,null,null,null,null,null,null,null,null,null,null,null,null,null,null,null,null,null,null,null,null,null,null,null,null,null,null,null,null,null,null,null,null,null,null,null,null,null,null,null,null,null,null,null,null,null,null,null,null,null,null,null,null,null,null,null,null,null,null,null,null,null,null,null,null,null,null,null,null,null,null,null,null,null,null,null,null,null,null,null,null,null,null,null,null,null,null,null,null,null,null,null,null,null,null,null,null,null,null,null,null,null,null,null,null,null,null,null,null,null,null,null,null,null,null,null,null,null,null,null,null,null,null,null,null,null,null,null,null,null,null,null,null,null,null,null,null,null,null,null,null,null,null,null,null,null,null,null,null,null,null,null,null,null,null,null,null,null,null,null,null,2,"Construction of chamber for 100mm sluices valve","item3",10,"Nos"]
["Total in Figures",null,null,null,null,null,null,null,null,null,null,null,null,null,null,null,null,null,null,null,null,null,null,null,null,null,null,null,null,null,null,null,null,null,null,null,null,null,null,null,null,null,null,null,null,null,null,null,null,null,null,null,{"$f":"SUM(BA13:BA17)","v":0},{"$f":"SUM(BB13:BB17)","v":0},{"$f":"SpellNumberMC($E$2,BB18)","v":"INR Zero Only"},null,null,null,null,null,null,null,null,null,null,null,null,null,null,null,null,null,null,null,null,null,null,null,null,null,null,null,null,null,null,null,null,null,null,null,null,null,null,null,null,null,null,null,null,null,null,null,null,null,null,null,null,null,null,null,null,null,null,null,null,null,null,null,null,null,null,null,null,null,null,null,null,null,null,null,null,null,null,null,null,null,null,null,null,null,null,null,null,null,null,null,null,null,null,null,null,null,null,null,null,null,null,null,null,null,null,null,null,null,null,null,null,null,null,null,null,null,null,null,null,null,null,null,null,null,null,null,null,null,null,null,null,null,null,null,null,null,null,null,null,null,null,null,null,null,null,null,null,null,null,null,null,null,null,null,null,null,null,null,null,null,null,null,null,null,null,null,null,null,null,null,null,null,null,null,null,null,null,null,null,null,null,null,4,"Construction of chamber for 100mm sluice plates","item5",10,"Nos"]
["Quoted Rate in Figures",null,null,null,"Select",null,null,null,null,null,null,null,"%",null,null,null,null,null,null,null,null,null,null,null,null,null,null,null,null,null,null,null,null,null,null,null,null,null,null,null,null,null,null,null,null,null,null,null,null,null,null,null,{"$f":"IF(ISBLANK(F19),0,IF(E19=\"Excess (+)\",ROUND(BA18+(BA18*F19),2),IF(E19=\"Less (-)\",ROUND(BA18+(BA18*F19*(-1)),2),0)))","v":0},{"$f":"ROUND(BA19,0)","v":0},{"$f":"SpellNumber(L19,BB19)","v":" Zero Only"}]
["Quoted Rate in Words",null,{"$f":"SpellNumberMC($E$2,BB18)","v":"INR Zero Only"}]

{"sheet":"Macros","index":1,"n_rows":6,"n_cols":5,"rows_kept":6,"cut":false,"hidden":false,"merged":[[5,4,13,10]]}
[]
[]
[]
[]
[]
[null,null,null,null,"Please Enable Macros to View BoQ information"]